Cogmind - Beta 14 @@@ ROGUE MODE // 2025.05.04 @ 13:52:39 Player: gallo Result: Self-destructed Performance ------------- Evolutions (1) 500 Regions Visited (3) 600 Robots Destroyed (19) 95 Value Destroyed (433) 433 Prototype IDs (1) 20 Alien Tech Used (0) 0 Bonus (2) 2 TOTAL SCORE: 1650 Bonus ------- High Alert Combat Kills 2 Cogmind --------- Core Integrity 77/400 Matter 231/300 Energy 97/100 System Corruption 0% Temperature Cool (0) Movement Core (200) Ox3 Location -9/Mines Parts ------- > --- POWER (2) -------- (None) > --- PROPULSION (3) --- (None) > --- UTILITY (2) ------ Small Storage Unit Visual Processing Unit > --- WEAPON (2) ------- Advanced Beam Cannon Mace > --- INVENTORY (8) ---- Medium Matter Pod (52) Sensor Array Power Shielding Beam Cannon Assault Rifle Peak State ------------ > --- POWER ------------ Ion Engine Ion Engine > --- PROPULSION ------- Aluminum Leg Aluminum Leg Aluminum Leg > --- UTILITY ---------- Small Storage Unit Visual Processing Unit > --- WEAPON ----------- Advanced Beam Cannon Mace > --- INVENTORY -------- Ion Engine Medium Matter Pod Sensor Array Power Shielding Medium Laser Beam Cannon Assault Rifle Grenade Launcher [Rating: 13] Favorites ----------- Power Ion Engine Engine Ion Engine Propulsion Aluminum Leg Leg Aluminum Leg Utility Small Storage Unit Device Sensor Array Storage Small Storage Unit Processor Visual Processing Unit Weapon EM Pulse Gun Energy Gun EM Pulse Gun Energy Cannon Advanced Beam Cannon Ballistic Cannon Improved Light Cannon Launcher Grenade Launcher Impact Weapon Mace Build | -11 -10 -9 -9 ------- Run | Yrd Mat Mat Min Slots Evolved 2 | . . 2 . Power 1 | . . 1 . Propulsion 1 | . . 1 . Utility . | . . . . Weapon . | . . . . Parts Attached 29 | 6 6 14 3 Power 5 | 1 1 3 . Engine 5 | 1 1 3 . Core . | . . . . Reactor . | . . . . Propulsion 5 | 2 . 3 . Treads . | . . . . Leg 5 | 2 . 3 . Wheel . | . . . . Hover . | . . . . Flight . | . . . . Utility 4 | 1 2 1 . Device 1 | . 1 . . Storage 2 | 1 1 . . Processor 1 | . . 1 . Hackware . | . . . . Protection . | . . . . Artifact . | . . . . Weapon 15 | 2 3 7 3 Energy Gun 3 | 2 1 . . Energy Cannon 5 | . 1 2 2 Ballistic Gun . | . . . . Ballistic Cannon 1 | . . 1 . Launcher 2 | . 1 1 . Special Weapon . | . . . . Impact Weapon 4 | . . 3 1 Slashing Weapon . | . . . . Piercing Weapon . | . . . . Special Melee Weapon . | . . . . Unidentified Prototypes . | . . . . Parts Lost 6 | . . 1 5 Power 2 | . . . 2 Propulsion 3 | . . 1 2 Utility . | . . . . Weapon 1 | . . . 1 Highest Loss Streak 6 | . . 1 6 To Critical Strikes . | . . . . Average Slot Usage (%) 90 | . 88 94 47 Engine 17 | . 14 19 7 Leg 28 | . 28 30 1 Device 3 | . 2 4 . Storage 11 | . 14 11 11 Processor 5 | . . 6 11 Energy Gun 5 | . 13 3 . Energy Cannon 7 | . 2 9 5 Ballistic Cannon 2 | . . 3 3 Launcher 4 | . 12 2 . Impact Weapon 2 | . . 3 7 Peak Build Rating 13 | 6 7 13 12 Average Rating 9 | 4 6 10 7 On Entrance 6 | . 6 7 11 Naked Turns . | . . . . Heaviest Build 95 | 14 95 23 23 Greatest Support 30 | 20 20 30 10 Greatest Overweight (x) 4 | 1 4 1 3 Average Overweight (x) . | . . . 2 Largest Inventory Capacity 25 | 8 25 8 8 Average Capacity 8 | 6 9 8 8 Most Carried 8 | 2 5 8 6 Average Carried 5 | . 3 6 5 Final Capacity 8 | 8 8 8 8 Final Carried 6 | 2 5 6 5 Class Distribution -------------------- 100% | Mutant Dominant Class ---------------- Mutant | -10/Materials Mutant | -9/Materials Mutant | -9/Mines Resources | -11 -10 -9 -9 ----------- Run | Yrd Mat Mat Min Matter Collected 544 | 139 14 390 1 Remotely . | . . . . Salvage Created 513 | . 21 478 14 Parts 48 | . 8 37 3 Haulers Intercepted . | . . . . Recyclers Shooed . | . . . . Parts Field Recycled . | . . . . Retrieved Matter . | . . . . Parts Self-Destructed . | . . . . Prevented . | . . . . Kills | -11 -10 -9 -9 ------- Run | Yrd Mat Mat Min Combat Hostiles Destroyed 14 | . 3 10 1 Melee 3 | . . 3 . Guns 1 | . . 1 . Cannons 6 | . . 5 1 AOE 4 | . 3 1 . Classes Destroyed 6 | . 1 5 . Builder 2 | . . 2 . Recycler 1 | . . 1 . Watcher 2 | . . 2 . Swarmer 6 | . 3 2 1 Grunt 5 | . . 5 . Sentry 3 | . . 3 . Best Kill Streak 4 | . 3 4 1 Combat Bots Only 3 | . 3 2 1 Max Kills in Single Turn 3 | . 3 2 1 Gunslinging . | . . . . Exploded 3 | . 3 1 . Melee 1 | . . 1 . Uniques/NPCs Destroyed . | . . . . Combat | -11 -10 -9 -9 -------- Run | Yrd Mat Mat Min Hostile Shots Fired 162 | . 5 99 58 Missed 53 | . 2 35 16 Damage Taken 1333 | . 19 686 628 Core 323 | . . 124 199 Absorbed by Shields . | . . . . Core Remaining (%) 100 | 100 100 . . Volleys Fired 45 | . 3 35 7 Largest 2 | . 2 2 2 Hottest 107 | . 70 107 107 Shots Fired 67 | . 4 51 12 Gun 11 | . 3 8 . Cannon 53 | . . 41 12 Launcher 3 | . 1 2 . Special . | . . . . Kinetic 19 | . . 14 5 Thermal 34 | . . 27 7 Explosive 3 | . 1 2 . Electromagnetic 11 | . 3 8 . Robot Hit Streak 6 | . 1 6 3 Robot Miss Streak 6 | . 3 6 1 Penetration Max . | . . . . Secondary Targets . | . . . . Shots Hit Robots 44 | . 1 35 8 Core Hits 22 | . 3 17 2 Critical Kills . | . . . . Critical Parts Destroyed . | . . . . Critical Strikes . | . . . . Melee Attacks 16 | . . 14 2 Impact 16 | . . 14 2 Slashing . | . . . . Piercing . | . . . . Sneak Attacks 2 | . . 2 . Combat Hostiles 1 | . . 1 . Follow-up Attacks . | . . . . Damage Inflicted 1203 | . 128 917 158 Guns 53 | . . 53 . Cannons 518 | . . 401 117 Explosions 193 | . 128 65 . Melee 436 | . . 395 41 Ramming 3 | . . 3 . Kinetic 251 | . . 194 57 Thermal 267 | . . 207 60 Explosive 193 | . 128 65 . Electromagnetic 53 | . . 53 . Impact 436 | . . 395 41 Slashing . | . . . . Piercing . | . . . . Highest Corruption . | . . . . Average Corruption . | . . . . Corruption Purged . | . . . . Corruption Blocked . | . . . . Overload Shots . | . . . . Overflow Damage 124 | . . 124 . Projectiles . | . . . . Explosions . | . . . . Melee 124 | . . 124 . Knockbacks 3 | . . 2 1 Impact 1 | . . 1 . Kinetic 2 | . . 1 1 Secondary . | . . . . Self-Inflicted Damage . | . . . . Shots . | . . . . Rammed . | . . . . Targets Rammed 1 | . . 1 . Kicked 1 | . . 1 . Crushed . | . . . . Highest Temperature 303 | . 9 265 303 Average Temperature 84 | . 6 70 142 Received Heat Transfer 492 | . . 240 252 Effects 3 | . . 1 2 Energy Bleed 1 | . . 1 . Interference 2 | . . . 2 Siege Activations . | . . . . Robots Corrupted . | . . . . Combat Hostiles . | . . . . Parts Fried 3 | . . 3 . Impact Corruptions 3 | . . 3 . Robots Melted . | . . . . Combat Hostiles . | . . . . Parts Melted . | . . . . Heat Transferred 518 | . . 407 111 Parts Sabotaged . | . . . . Parts Stolen . | . . . . Parts Stripped . | . . . . Power Chain Reactions . | . . . . Alert | -11 -10 -9 -9 ------- Run | Yrd Mat Mat Min Peak Influence 428 | . 104 428 162 Initial 162 | . . 43 162 Average 146 | . 33 201 126 Maximum Alert Level 2 | . . 2 . Low Security (%) 65 | 100 100 47 100 Level 1 30 | . . 46 . Level 2 4 | . . 6 . Level 3 . | . . . . Level 4 . | . . . . Level 5 . | . . . . High Security . | . . . . Max Security . | . . . . Squads Dispatched 8 | . 2 6 . Investigation 6 | . 2 4 . Extermination . | . . . . Reinforcement 2 | . . 2 . Assault . | . . . . Garrison . | . . . . Intercept . | . . . . Searches Triggered . | . . . . Construction Impeded . | . . . . Haulers Reinforced . | . . . . Active Scanning Responses . | . . . . Cargo Convoy Interrupts . | . . . . Stealth | -11 -10 -9 -9 --------- Run | Yrd Mat Mat Min Distress Signals 2 | . . 2 . Communications Jammed . | . . . . Distress Signals . | . . . . Times Spotted 37 | . 5 24 8 Peak Tracking Total 6 | . 3 5 6 Tactical Retreats 2 | . . 2 . Traps | -11 -10 -9 -9 ------- Run | Yrd Mat Mat Min Traps Triggered 2 | . 1 1 . Indirectly . | . . . . Trap Hack Attempts . | . . . . Triggered . | . . . . Disarmed 3 | . 3 . . Reprogrammed . | . . . . Reused . | . . . . Traps Extracted . | . . . . Installed . | . . . . Triggered . | . . . . Machines | -11 -10 -9 -9 ---------- Run | Yrd Mat Mat Min Machines Disabled 2 | . 1 1 . Max in Single Turn 1 | . 1 1 . Machines Repaired . | . . . . Machines Dismantled . | . . . . Machines Sabotaged . | . . . . Overloaded Fab Kills . | . . . . Hacking | -11 -10 -9 -9 --------- Run | Yrd Mat Mat Min Machines Accessed 7 | . 3 4 . Terminals 5 | . 2 3 . Fabricators . | . . . . Repair Stations . | . . . . Recycling Units 1 | . 1 . . Scanalyzers 1 | . . 1 . Garrison Access . | . . . . Total Hacks 20 | . 9 11 . Successful 7 | . 3 4 . Failed 13 | . 6 7 . Catastrophic 2 | . 1 1 . Database Lockouts . | . . . . Manual 14 | . 7 7 . Terminals 14 | . 6 8 . Fabricators . | . . . . Repair Stations . | . . . . Recycling Units 3 | . 3 . . Scanalyzers 3 | . . 3 . Garrison Access . | . . . . Terminal Hacks 4 | . 1 3 . Locate Traps 1 | . . 1 . Disarm Traps 1 | . 1 . . Patrol Status 1 | . . 1 . Zone Layout 1 | . . 1 . Fabricator Hacks . | . . . . Repair Station Hacks . | . . . . Recycling Unit Hacks 2 | . 2 . . Report Inventory 1 | . 1 . . Retrieve Components 1 | . 1 . . Scanalyzer 1 | . . 1 . Insert Component 1 | . . 1 . Garrison Access Hacks . | . . . . Unauthorized Hacks . | . . . . Terminals . | . . . . Fabricators . | . . . . Repair Stations . | . . . . Recycling Units . | . . . . Scanalyzers . | . . . . Garrison Access . | . . . . Data Cores Recovered . | . . . . Used . | . . . . Hacking Detections 6 | . 2 4 . Full Trace Events 5 | . 2 3 . Feedback Events . | . . . . Feedback Blocked . | . . . . Robot Schematics Acquired . | . . . . Robots Built . | . . . . Authchips . | . . . . Time . | . . . . Total Robot Build Rating . | . . . . Part Schematics Acquired . | . . . . Parts Built . | . . . . Authchips . | . . . . Time . | . . . . Total Part Build Rating . | . . . . Parts Repaired . | . . . . Time . | . . . . Parts Recycled . | . . . . Recycled Matter . | . . . . Retrieved Matter . | . . . . Retrieved Components 2 | . 2 . . Parts Scanalyzed . | . . . . Part Schematics Acquired . | . . . . Parts Damaged . | . . . . Bothacking | -11 -10 -9 -9 ------------ Run | Yrd Mat Mat Min Used RIF Installer . | . . . . Robots Hacked . | . . . . Non-combat . | . . . . Combat . | . . . . Robot Hacks Applied . | . . . . Relay Couplers Released . | . . . . Fabnet Peak Effective % . | . . . . Robots Rewired . | . . . . Allies Hacked . | . . . . Hacks Repelled . | . . . . Allies | -11 -10 -9 -9 -------- Run | Yrd Mat Mat Min Total Allies . | . . . . Largest Group . | . . . . Highest-Rated Group . | . . . . Highest-Rated Ally . | . . . . Total Orders . | . . . . Ally Attacks . | . . . . Total Damage . | . . . . Kills . | . . . . Allies Corrupted . | . . . . Allies Melted . | . . . . Intel | -11 -10 -9 -9 ------- Run | Yrd Mat Mat Min Robot Analysis Total . | . . . . Derelict Logs Recovered . | . . . . Drone Launches . | . . . . Drone Recoveries . | . . . . Exploration | -11 -10 -9 -9 ------------- Run | Yrd Mat Mat Min Turns Passed 1171 | 75 271 766 59 Spaces Moved 723 | 57 193 455 18 Core 28 | 11 . . 17 Treads . | . . . . Legs 695 | 46 193 455 1 Wheels . | . . . . Hover . | . . . . Flight . | . . . . Fastest Speed 50 | 50 120 120 150 Average Speed 123 | 110 125 122 167 Slowest Speed 400 | 120 400 190 260 Overloaded Moves . | . . . . Propulsion Burnouts . | . . . . Robots Hopped . | . . . . Cave-ins Triggered . | . . . . Exploration Rate (%) 19 | 5 29 39 6 Regions Visited 3 Branch Regions 1 Pre-discovered Areas . | . . . . Known Exits Taken . | . . . . Unknown Exits Taken 3 | 1 1 1 . Scrap Searched . | . . . . Spaces Dug . | . . . . Terrain Destroyed 7 | . 3 4 . Melee . | . . . . Projectile . | . . . . AOE 7 | . 3 4 . Terrain Rammed . | . . . . Walls Destroyed . | . . . . Machines Disabled . | . . . . Actions | -11 -10 -9 -9 --------- Run | Yrd Mat Mat Min Total 897 | 66 215 586 30 Wait 64 | 2 8 54 . Move 720 | 56 192 454 18 Hop . | . . . . Pick Up 12 | 2 4 6 . Fast Attach 10 | 6 2 2 . Attach 3 | . 1 1 1 Detach 2 | . 1 1 . Swap 16 | . 3 11 2 Drop 8 | . 1 7 . Fire 45 | . 3 35 7 Melee 16 | . . 14 2 Ram . | . . . . Kick 1 | . . 1 . Crush . | . . . . Escape Stasis . | . . . . Rewire . | . . . . Trap . | . . . . Miscellaneous . | . . . . Route ------- -11/Scrapyard -10/Materials -9/Materials -9/Mines History --------- Turn | Location | Event 3 | -11/Scrapyard | Discovered new exit (range 16) 76 | -11/Scrapyard | Entered Materials 257 | -10/Materials | Discovered new exit (range 15) 347 | -10/Materials | Entered another Materials area 347 | -9/Materials | Evolved 2 slots: Power x1, Propulsion x1 368 | -9/Materials | Build established: Mutant 1082 | -9/Materials | Discovered new exit (range 8) 1113 | -9/Materials | Entered Mines 1140 | -9/Mines | Core integrity fell below 50% 1143 | -9/Mines | Assembled infested the area 1148 | -9/Mines | Assisted by a Guerilla fighting off Assembled 1168 | -9/Mines | Lost 6 parts (2p3n1w) 1172 | -9/Mines | Core integrity fell below 20% 1172 | -9/Mines | Self-destructed Last Messages --------------- (Destroy). 01147_ G-47 Trooper knocked back. 01148_ A derelict emerges from the shadows: "You need to get out of here! I've been tracking a group of Assembled to figure out where they're coming from, and they're closing on this area, come on!" 01151_ G-34 Mercenary destroyed. 01152_ C-30 ARC bursts open, deploying its payload. 01152_ D-53 Grenadier unfolds itself. 01166_ S-10 Pest destroyed. 01168_ U-05 Engineer lays Concrete. 01169_ U-05 Engineer destroyed. 01170_ OA-WP9(h) destroyed. 01170_ D-53 Grenadier destroyed. 01170_ S-10 Pest destroyed. 01170_ U-05 Engineer builds a Wall. 01171_ The unstable cave ceiling collapses. 01172_ Flight Unit crushed. Map ----- +----------------------------------------------------+ | ????????????????????????????????????????????? | | ????????????????????????????????????????????? | | ????????????????????????????????????????????? | | ????????????????????????????????????????????? | | ????????????????????????????????????????????? | | ????????????????????????????????????????????? | | ????????????????????????????????????????????? | | ????????????????????????????????????????????? | | ????????????????????????????????????????????? | | ????????????????????????????????????????????? | | ????????????????????????????????????????????? | | ????????????????????????????????????????????? | | ????????????????????????????????????????????? | | ????????????????????????????????????????????? | | ????????????????????????????????????????????? | | ????????????#######?????????????????????????? | | ????????????# %#?????????????????????????? | | ????????????# %%##?#####??????????????????? | | ????????????# # ## # ###????????????????? | | ????????????# ## ###" #???????????? | | ????????????# ! ! % "%#????????????? | | ????????????# %%= ## ###" ????? | | ????????????# # % #???????????????? | | ????????????####### # #???????????????? | | ???????????????????# # #???????????????? | | ???????????????????# *s@ #????????????????? | | ??????????????# ###%####????????????????? | | ?????????????????????##*[???????????????????? | | ?????????????????????? ???????????????????? | | ????????????????????? ??????????????????? | | ???????????????????? ??????????????????? | | ???????????????????? ?????????????????? | | ??????????????????? ?????????????????? | | ?????????????????? ##????????????????? | | ????????????????? ?######?????????????????? | | ?????????????????###????????????????????????? | | ????????????????????????????????????????????? | | ????????????????????????????????????????????? | | ????????????????????????????????????????????? | | ????????????????????????????????????????????? | | ????????????????????????????????????????????? | | ????????????????????????????????????????????? | | | | | | | | | | | | | | | | | +----------------------------------------------------+ Best States ------------- Heat Dissipation 28 Energy Generation 15 Energy Capacity 400 Matter Stores 300 Matter Capacity 300 Sight Range 18 Robot Scan Range 14 Terrain Scan Density 10 Evasion (%) 55 Item Schematics ----------------- None Robot Schematics ------------------ None Fabricated ------------ Nothing Alien Tech Used ----------------- None Achievements -------------- Safety First Challenges ------------ None Game ------ Seed CompanionRemoteInterpreter Manual? 0 Play Time 00:19:08 Cumulative 6.2 hours Start 2025.05.04 @ 13:24:47 End 2025.05.04 @ 13:52:39 Sessions 3 Manual Loads 0 Difficulty Rogue Special Mode None Game No. 26 Rogue 26 Adventurer 0 Explorer 0 Win Type - Total 0 Types 0/0/0/0/0/0/0/0/0 Lore% 5 Gallery% 13 Achievement% 10 Wizard Run 0 Options --------- Layout 1 ASCII 0 Keyboard 1 Movement Numpad Keybinds 0 Fullscreen 1 Font 24/Smallcaps Map View 50x35 Zoom Use 0% Tactical HUD 1 Map Filters NONE Filters NONE Steam 1 RUN: 968a4ba3-ec08-422b-b95b-40088b05102a